fUSD/lending_fUSD_20260518
["ID","MTS","AMOUNT","RATE_DAILY","PERIOD"]
[422557378,1779076232000,-500.0,0.00014249,2]
[422557383,1779076232000,-500.0,0.00014249,2]
[422557370,1779076232000,-523.5152065,0.00014249,2]
[422557402,1779076237000,-19340.85280967,0.0001425,2]
[422557417,1779076238000,-205.0,0.0001473,2]
[422557413,1779076238000,-1680.0,0.00014598,2]
[422557431,1779076238000,-376.35579198,0.000149,2]
[422557420,1779076238000,-332.0,0.00014787,2]
[422557426,1779076238000,-200.0,0.0001488,2]
[422557422,1779076238000,-332.0,0.00014821,2]
[422557425,1779076238000,-966.745,0.00014872,2]
[422557418,1779076238000,-350.0,0.00014745,2]
[422557421,1779076238000,-167.55,0.00014812,2]
[422557416,1779076238000,-3803.67296861,0.000147,2]
[422557411,1779076238000,-10076.6096469,0.00014513,2]
[422557414,1779076238000,-162.63,0.00014639,2]
[422557412,1779076238000,-152.0,0.00014594,2]
[422557415,1779076238000,-152.0,0.00014676,2]
[422557427,1779076238000,-332.0,0.00014889,2]
[422557408,1779076238000,-150.39,0.00014329,2]
[422557409,1779076238000,-255.0,0.00014386,2]
[422557405,1779076238000,-747.75650647,0.0001425,2]
[422557406,1779076238000,-1442.04507676,0.0001425,2]
[422557407,1779076238000,-112469.81125449,0.0001425,2]
[422557403,1779076238000,-978.94663117,0.0001425,2]
[422557410,1779076238000,-1617.91,0.00014497,2]
[422557424,1779076238000,-350.0,0.00014853,2]
[422557404,1779076238000,-8037.66132123,0.0001425,2]
[422557429,1779076238000,-686.93789262,0.000149,2]
[422557423,1779076238000,-200.71016,0.0001485,2]
[422557454,1779076238000,-516.70824417,0.00015,2]
[422557449,1779076238000,-159.0,0.00015,5]
[422557447,1779076238000,-500.0,0.00014999,2]
[422557452,1779076238000,-4143.25905905,0.00015,2]
[422557450,1779076238000,-151.0,0.00015,5]
[422557451,1779076238000,-262559.08303588,0.00015,2]
[422557448,1779076238000,-525.36898811,0.00014999,3]
[422557439,1779076238000,-151.77596545,0.00014999,2]
[422557442,1779076238000,-474.17852776,0.00014999,2]
[422557445,1779076238000,-465.85878685,0.00014999,2]
[422557419,1779076238000,-215.11887611,0.00014771,2]
[422557438,1779076238000,-827.18086267,0.00014999,2]
[422557437,1779076238000,-501.39231405,0.00014998,2]
[422557436,1779076238000,-332.0,0.00014984,2]
[422557440,1779076238000,-332.15624211,0.00014999,2]
[422557435,1779076238000,-350.0,0.00014976,2]
[422557441,1779076238000,-642.34106708,0.00014999,2]
[422557434,1779076238000,-200.71017,0.0001495,2]
[422557433,1779076238000,-1205.68391036,0.000149,2]
[422557443,1779076238000,-500.0,0.00014999,2]
[422557432,1779076238000,-1313.9599396,0.000149,2]
[422557430,1779076238000,-5000.0,0.000149,2]
[422557428,1779076238000,-3122.68733063,0.000149,2]
[422557471,1779076240000,-2535.78197907,0.000147,2]
[422557472,1779076240000,-14223.55180236,0.00015,2]
[422557473,1779076240000,-1068.32136773,0.00015,2]
[422557474,1779076240000,-332.11298935,0.00015,2]
[422557478,1779076243000,-9815.40157859,0.00015,2]
[422557482,1779076245000,-294.61931855,0.00015,2]
[422557479,1779076245000,-565.21518065,0.00015,2]
[422557480,1779076245000,-1182910.51443594,0.00015,2]
[422557489,1779076246000,-8824.93175727,0.00015,2]
[422557487,1779076246000,-49806.64642888,0.00015,2]
[422557488,1779076246000,-122966.69156873,0.00015,2]
[422557486,1779076246000,-600.0,0.00015,2]
[422557485,1779076246000,-265.59999999,0.00015,2]
[422557484,1779076246000,-666.0,0.00015,2]
[422557483,1779076246000,-658.03402278,0.00015,2]
[422557509,1779076546000,164.22,7.102e-05,2]
[422557512,1779076546000,164.22,9.66e-05,2]
[422557511,1779076546000,164.22,8.807e-05,2]
[422557510,1779076546000,164.22,7.955e-05,2]
[422557517,1779076674000,667.9,0.00029986,120]
[422557518,1779076675000,667.9,0.00029836,120]
[422557519,1779076676000,667.9,0.00029685,120]
[422557520,1779076677000,1144.98,0.00029986,120]
[422557521,1779077003000,500.0,0.0003013,120]
[422557522,1779077015000,500.0,0.0003013,120]
[422557529,1779077166000,-9222.36,0.000107,2]
[422557527,1779077166000,-300.0,0.00010699,2]
[422557528,1779077166000,-150.0,0.00010699,2]
[422557525,1779077166000,-163.42,0.00010513,2]
[422557526,1779077166000,-164.22,0.00010513,2]
[422557530,1779077167000,-10000.0,0.000107,2]
[422557531,1779077168000,-10000.0,0.000107,2]
[422557533,1779077169000,-10000.0,0.000107,2]
[422557532,1779077169000,-10000.0,0.000107,2]
[422557534,1779077170000,-10000.0,0.000107,2]
[422557535,1779077171000,-10000.0,0.000107,2]
[422557537,1779077172000,-10000.0,0.000107,2]
[422557536,1779077172000,-10000.0,0.000107,2]
[422557538,1779077173000,-10000.0,0.000107,2]
[422557540,1779077186000,-164.22,0.00011366,2]
[422557539,1779077186000,-2069.17856705,0.000107,2]
[422557541,1779077187000,-165.12293794,0.00011564,2]
[422557542,1779077187000,-255.0,0.00011737,2]
[422557549,1779077216000,-208.5339928,0.00012809,2]
[422557548,1779077216000,-7013.199489,0.00012802,2]
[422557547,1779077216000,-1200.0,0.00012801,2]
[422557546,1779077216000,-165.07,0.00012764,2]
[422557545,1779077216000,-222.28190462,0.00012702,2]
[422557543,1779077216000,-164.22,0.00012219,2]
[422557544,1779077216000,-180.57,0.00012498,2]
[422557553,1779077217000,-53.76461358,0.00012972,2]
[422557551,1779077217000,-178.79,0.00012867,2]
[422557552,1779077217000,-433.0,0.00012871,2]
[422557550,1779077217000,-180.57,0.0001281,2]
[422557554,1779077221000,-2000.0,0.00012972,2]
[422557555,1779077341000,1000.0,0.00030136,120]
[422557556,1779077399000,164.22,6.812e-05,2]
[422557562,1779077431000,-1200.0,0.00013071,2]
[422557561,1779077431000,-225.0,0.00013071,2]
[422557560,1779077431000,-300.0,0.00013071,2]
[422557559,1779077431000,-150.0,0.00013071,2]
[422557558,1779077431000,-1203.67283018,0.00012972,2]
[422557602,1779077432000,-500.0,0.00014,2]
[422557605,1779077432000,-500.0,0.00014,2]
[422557607,1779077432000,-500.0,0.00014,2]
[422557611,1779077432000,-500.0,0.00014,2]
[422557609,1779077432000,-500.0,0.00014,2]
[422557610,1779077432000,-500.0,0.00014,2]
[422557614,1779077432000,-500.0,0.00014,2]
[422557612,1779077432000,-500.0,0.00014,2]
[422557617,1779077432000,-500.0,0.00014,2]
[422557615,1779077432000,-500.0,0.00014,2]
[422557619,1779077432000,-500.0,0.00014,2]
[422557613,1779077432000,-500.0,0.00014,2]
[422557601,1779077432000,-500.0,0.00014,2]
[422557620,1779077432000,-500.0,0.00014,2]
[422557618,1779077432000,-500.0,0.00014,2]
[422557622,1779077432000,-500.0,0.00014,2]
[422557632,1779077432000,-255.0,0.00014182,2]
[422557623,1779077432000,-500.0,0.00014,2]
[422557624,1779077432000,-500.0,0.00014,2]
[422557625,1779077432000,-500.0,0.00014,2]
[422557616,1779077432000,-500.0,0.00014,2]
[422557599,1779077432000,-513.18,0.00014,2]
[422557597,1779077432000,-500.0,0.00014,2]
[422557593,1779077432000,-166.66,0.00013836,2]
[422557563,1779077432000,-15112.92787659,0.00013072,2]
[422557565,1779077432000,-180.57,0.00013123,2]
[422557564,1779077432000,-79198.50222341,0.00013072,2]
[422557566,1779077432000,-151.0,0.00013169,2]
[422557568,1779077432000,-215.11887611,0.00013223,2]
[422557567,1779077432000,-2000.0,0.00013199,2]
[422557570,1779077432000,-434.84399284,0.00013356,2]
[422557569,1779077432000,-164.22,0.00013356,2]
[422557579,1779077432000,-500.0,0.00013698,2]
[422557571,1779077432000,-800.0,0.00013356,2]
[422557591,1779077432000,-180.57,0.00013748,2]
[422557573,1779077432000,-423.75,0.0001337,2]
[422557572,1779077432000,-600.0,0.00013356,2]
[422557581,1779077432000,-500.0,0.00013698,2]
[422557575,1779077432000,-180.57,0.00013435,2]
[422557577,1779077432000,-500.0,0.00013698,2]
[422557585,1779077432000,-492.75689942,0.00013698,2]
[422557583,1779077432000,-500.0,0.00013698,2]
[422557587,1779077432000,-200.0,0.00013699,2]
[422557589,1779077432000,-166.66,0.00013699,2]
[422557596,1779077432000,-166.66,0.00013973,2]
[422557628,1779077432000,-373.54,0.00014,2]
[422557574,1779077432000,-1332.14,0.00013428,2]
[422557627,1779077432000,-500.0,0.00014,2]
[422557621,1779077432000,-500.0,0.00014,2]
[422557629,1779077432000,-250.0,0.00014,2]
[422557658,1779077432000,-6878.47728447,0.000149,2]
[422557659,1779077432000,-2655.7069601,0.00014934,2]
[422557657,1779077432000,-5000.0,0.000149,2]
[422557660,1779077432000,-2524.0569579,0.00014934,2]
[422557663,1779077432000,-162.1633562,0.00014934,2]
[422557666,1779077432000,-152.0,0.00014998,2]
[422557626,1779077432000,-500.0,0.00014,2]
[422557664,1779077432000,-6071.4816238,0.00014934,2]
[422557662,1779077432000,-3064.3879835,0.00014934,2]
[422557661,1779077432000,-13516.9729107,0.00014934,2]
[422557653,1779077432000,-200.0,0.0001488,2]
[422557671,1779077432000,-578.12864316,0.00014999,2]
[422557672,1779077432000,-500.0,0.00014999,2]
[422557667,1779077432000,-500.0,0.00014999,2]
[422557668,1779077432000,-628.18405088,0.00014999,2]
[422557670,1779077432000,-500.0,0.00014999,2]
[422557674,1779077432000,-220.62750012,0.00014999,2]
[422557676,1779077432000,-527.51444534,0.00014999,2]
[422557675,1779077432000,-500.0,0.00014999,2]
[422557673,1779077432000,-506.53738195,0.00014999,2]
[422557677,1779077432000,-500.0,0.00014999,2]
[422557678,1779077432000,-500.0,0.00014999,2]
[422557669,1779077432000,-500.0,0.00014999,2]
[422557654,1779077432000,-1585.05,0.0001488,2]
[422557665,1779077432000,-151.0,0.00014997,2]
[422557656,1779077432000,-588.80390796,0.000149,2]
[422557630,1779077432000,-500.0,0.00014,2]
[422557631,1779077432000,-166.66,0.0001411,2]
[422557655,1779077432000,-172.553,0.0001488,2]
[422557636,1779077432000,-500.0,0.00014249,2]
[422557644,1779077432000,-1680.0,0.00014378,2]
[422557633,1779077432000,-166.66,0.00014247,2]
[422557634,1779077432000,-500.0,0.00014249,2]
[422557637,1779077432000,-500.0,0.00014249,2]
[422557635,1779077432000,-500.0,0.00014249,2]
[422557645,1779077432000,-166.66,0.00014384,2]
[422557639,1779077432000,-2500.0,0.00014269,2]
[422557638,1779077432000,-509.30532025,0.00014249,2]
[422557642,1779077432000,-2500.0,0.00014269,2]
[422557641,1779077432000,-2500.0,0.00014269,2]
[422557652,1779077432000,-317.0,0.00014879,2]
[422557650,1779077432000,-502.22761757,0.00014856,2]
[422557646,1779077432000,-2014.26746454,0.000147,2]
[422557651,1779077432000,-3257.43744368,0.00014867,2]
[422557648,1779077432000,-600.0,0.00014726,2]
[422557647,1779077432000,-800.0,0.00014726,2]
[422557640,1779077432000,-2500.0,0.00014269,2]
[422557643,1779077432000,-404.89053655,0.00014269,2]
[422557649,1779077432000,-2000.0,0.00014849,2]
[422557688,1779077433000,-579.17308925,0.00014999,2]
[422557684,1779077433000,-500.0,0.00014999,2]
[422557691,1779077433000,-500.0,0.00014999,2]
[422557695,1779077433000,-500.0,0.00014999,2]
[422557693,1779077433000,-500.0,0.00014999,2]
[422557694,1779077433000,-500.0,0.00014999,2]
[422557690,1779077433000,-500.0,0.00014999,2]
[422557679,1779077433000,-500.0,0.00014999,2]
[422557686,1779077433000,-500.0,0.00014999,2]
[422557682,1779077433000,-500.0,0.00014999,2]
[422557692,1779077433000,-500.0,0.00014999,2]
[422557680,1779077433000,-513.50677347,0.00014999,2]
[422557683,1779077433000,-500.0,0.00014999,2]
[422557681,1779077433000,-510.54334609,0.00014999,2]
[422557685,1779077433000,-500.0,0.00014999,2]
[422557689,1779077433000,-500.0,0.00014999,2]
[422557696,1779077433000,-500.0,0.00014999,2]
[422557709,1779077433000,-444.0,0.00015,2]
[422557697,1779077433000,-500.0,0.00014999,2]
[422557687,1779077433000,-500.0,0.00014999,2]
[422557713,1779077433000,-356.44950306,0.00015,2]
[422557712,1779077433000,-720.22605909,0.00015,2]
[422557714,1779077433000,-1507.28120465,0.00015,2]
[422557711,1779077433000,-2060.33272966,0.00015,2]
[422557710,1779077433000,-643.82857995,0.00015,2]
[422557708,1779077433000,-238006.11086951,0.00015,2]
[422557700,1779077433000,-500.0,0.00014999,2]
[422557703,1779077433000,-500.0,0.00014999,2]
[422557702,1779077433000,-500.0,0.00014999,2]
[422557704,1779077433000,-500.0,0.00014999,2]
[422557698,1779077433000,-500.0,0.00014999,2]
[422557707,1779077433000,-296.0,0.00015,5]
[422557699,1779077433000,-500.0,0.00014999,2]
[422557705,1779077433000,-153.90305867,0.00015,2]
[422557706,1779077433000,-155.0,0.00015,5]
[422557701,1779077433000,-500.0,0.00014999,2]
[422557721,1779077438000,-594.11723066,0.00015,2]
[422557720,1779077438000,-20488.85468976,0.00015,2]
[422557719,1779077438000,-764.78,0.00015,2]
[422557718,1779077438000,-3892.53075856,0.00015,2]
[422557717,1779077438000,-18733.81205364,0.00015,2]
[422557716,1779077438000,-1342.84497636,0.000147,2]
[422557731,1779077443000,-1744.70786464,0.00012972,2]
[422557732,1779077443000,-311.46101305,0.00012972,2]
[422557751,1779077446000,-458.38907396,0.00012972,2]
[422557752,1779077446000,-4888.29822049,0.00012972,2]
[422557753,1779077446000,-764.78,0.00012972,2]
[422557754,1779077446000,-397.12023681,0.00012972,2]
[422557755,1779077446000,-12081.64113034,0.00012972,2]
[422557893,1779078171000,169.95,9.608e-05,2]
[422557892,1779078171000,169.95,8.049e-05,2]
[422557891,1779078171000,169.95,6.49e-05,2]
[422557896,1779078346000,-390.95979957,0.00012184,2]
[422557897,1779078346000,-250.0,0.00012284,2]
[422557899,1779078346000,-222.3,0.0001229,2]
[422557901,1779078346000,-488.205442,0.00012548,2]
[422557900,1779078346000,-500.0,0.00012349,2]
[422557898,1779078346000,-250.0,0.00012284,2]
[422557895,1779078346000,-169.95,0.00011167,2]
[422557904,1779078346000,-169.95,0.00012726,2]
[422557902,1779078346000,-150.87495586,0.00012612,2]
[422557906,1779078346000,-300.0,0.00012871,2]
[422557905,1779078346000,-821.5782,0.00012871,2]
[422557907,1779078346000,-1200.0,0.00012871,2]
[422557909,1779078346000,-28841.26251863,0.00012872,2]
[422557903,1779078346000,-188.96867169,0.00012648,2]
[422557908,1779078346000,-300.0,0.00012871,2]
[422557911,1779078540000,1000.0,0.00030135,120]
[422557935,1779078633000,-169.06,0.00013237,2]
[422557936,1779078633000,-436.33,0.00013262,2]
[422557938,1779078633000,-700.0,0.00013356,2]
[422557937,1779078633000,-819.94,0.00013268,2]
[422557940,1779078633000,-290.11,0.00013395,2]
[422557943,1779078633000,-290.11,0.0001373,2]
[422557939,1779078633000,-500.0,0.00013356,2]
[422557934,1779078633000,-170.40944986,0.00013231,2]
[422557942,1779078633000,-166.66,0.00013699,2]
[422557945,1779078633000,-166.66,0.00013836,2]
[422557946,1779078633000,-166.8,0.00013856,2]
[422557947,1779078633000,-3514.0600373,0.00013956,2]
[422557941,1779078633000,-200.0,0.00013699,2]
[422557933,1779078633000,-170.40944986,0.00013231,2]
[422557929,1779078633000,-2000.0,0.0001318,2]
[422557932,1779078633000,-723.73,0.0001323,2]
[422557930,1779078633000,-2000.0,0.0001318,2]
[422557927,1779078633000,-500.0,0.00013,2]
[422557925,1779078633000,-165.94101474,0.00012907,2]
[422557926,1779078633000,-297.0,0.00012999,2]
[422557928,1779078633000,-215.11887611,0.00013021,2]
[422557924,1779078633000,-6820.57672977,0.000129,2]
[422557922,1779078633000,-298.85543,0.00012872,2]
[422557923,1779078633000,-188.96867169,0.00012875,2]
[422557921,1779078633000,-4316.19250199,0.00012772,2]
[422557920,1779078633000,-700.05,0.00012772,2]
[422557918,1779078633000,-1200.0,0.00012771,2]
[422557919,1779078633000,-9137.44309801,0.00012772,2]
[422557944,1779078633000,-312.0,0.00013825,2]
[422557931,1779078633000,-163.84,0.00013206,2]
[422557949,1779078633000,-150.0,0.00013973,2]
[422557963,1779078633000,-8518.68101687,0.000147,2]
[422557951,1779078633000,-290.11,0.00014065,2]
[422557986,1779078633000,-58312.68044664,0.00015,2]
[422557985,1779078633000,-159.0,0.00015,5]
[422557984,1779078633000,-241.0,0.00015,5]
[422557983,1779078633000,-300.0,0.00014999,2]
[422557979,1779078633000,-4126.12786061,0.000149,2]
[422557978,1779078633000,-5000.0,0.000149,2]
[422557972,1779078633000,-2000.0,0.00014828,2]
[422557973,1779078633000,-200.0,0.0001488,2]
[422557982,1779078633000,-401.7418484,0.00014999,2]
[422557981,1779078633000,-150.53262,0.0001497,2]
[422557974,1779078633000,-1570.148,0.0001488,2]
[422557948,1779078633000,-166.66,0.00013973,2]
[422557980,1779078633000,-150.53263,0.0001492,2]
[422557976,1779078633000,-150.53262,0.0001488,2]
[422557975,1779078633000,-171.33,0.0001488,2]
[422557953,1779078633000,-166.66,0.00014247,2]
[422557950,1779078633000,-960.0,0.00014048,2]
[422557952,1779078633000,-166.66,0.0001411,2]
[422557954,1779078633000,-166.66,0.00014384,2]
[422557977,1779078633000,-675.10398246,0.000149,2]
[422557956,1779078633000,-290.11,0.000144,2]
[422557958,1779078633000,-152.0,0.00014453,2]
[422557971,1779078633000,-2000.0,0.00014828,2]
[422557967,1779078633000,-500.0,0.00014726,2]
[422557968,1779078633000,-700.0,0.00014726,2]
[422557970,1779078633000,-1554.9047681,0.00014789,2]
[422557965,1779078633000,-150.0,0.00014725,2]
[422557961,1779078633000,-187.5,0.00014619,2]
[422557966,1779078633000,-165.54968382,0.00014725,2]
[422557969,1779078633000,-290.11,0.00014735,2]
[422557992,1779078638000,-13765.86873564,0.00015,2]
[422557993,1779078638000,-1906.31029911,0.00015,2]
[422557994,1779078638000,-668.61257251,0.00015,2]
[422557991,1779078638000,-5679.12067792,0.000147,2]
[422557997,1779078638000,-1453.94815149,0.00015,2]
[422557995,1779078638000,-736.12857669,0.00015,2]
[422557999,1779078638000,-285315.33024643,0.00015,2]
[422557996,1779078638000,-4316.86873287,0.00015,2]
[422558001,1779078638000,-150.0,0.00015,2]
[422557998,1779078638000,-307.0,0.00015,2]
[422558007,1779078638000,-57345.7261779,0.00015,2]
[422558006,1779078638000,-2449.67635947,0.00015,2]
[422558000,1779078638000,-151.55626079,0.00015,2]
[422558002,1779078638000,-3320.68666265,0.00015,2]
[422558005,1779078638000,-150.0,0.00015,2]
[422558004,1779078638000,-17394.43439348,0.00015,2]
[422558003,1779078638000,-150.0,0.00015,2]
[422558029,1779078643000,-447.95759778,0.000147,2]
[422558039,1779078646000,-38425.0,0.00015,2]
[422558038,1779078646000,-705.37737296,0.00015,2]
[422558037,1779078646000,-88754.09273277,0.00015,2]
[422558036,1779078646000,-151.0,0.00015,2]
[422558035,1779078646000,-56895.33986246,0.00015,2]
[422558034,1779078646000,-2309.52445512,0.000147,2]
[422558040,1779078646000,-5014.32685578,0.00015,2]
[422558042,1779078647000,-67707.13911912,0.00015,2]
[422558139,1779078897000,-500.0,0.00012771,2]
[422558138,1779078897000,-151.0,0.00012769,2]
[422558137,1779078897000,-3610.36187806,0.00012675,2]
[422558141,1779078897000,-500.0,0.00012771,2]
[422558142,1779078897000,-500.0,0.00012771,2]
[422558143,1779078897000,-536.78038413,0.00012771,2]
[422558144,1779078897000,-150.0,0.00012771,2]
[422558145,1779078897000,-3551.85773781,0.00012772,2]
[422558140,1779078897000,-500.0,0.00012771,2]
[422558146,1779078898000,-10000.0,0.00012772,2]
[422558147,1779078899000,-10000.0,0.00012772,2]
[422558148,1779078900000,-10000.0,0.00012772,2]
[422558151,1779078902000,-8500.0,0.00012772,2]
[422558150,1779078902000,-300.0,0.00012771,2]
[422558149,1779078902000,-1200.0,0.00012771,2]
[422558152,1779078903000,-10000.0,0.00012772,2]
[422558153,1779078905000,-10000.0,0.00012772,2]
[422558154,1779078910000,-200.0,0.00012772,2]
[422558155,1779078911000,-200.0,0.00012772,2]
[422558158,1779078912000,-200.0,0.00012772,2]
[422558157,1779078912000,-200.0,0.00012772,2]
[422558156,1779078912000,-200.0,0.00012772,2]
[422558160,1779078913000,-200.0,0.00012772,2]
[422558159,1779078913000,-200.0,0.00012772,2]
[422558163,1779078914000,-200.0,0.00012772,2]
[422558162,1779078914000,-200.0,0.00012772,2]
[422558161,1779078914000,-200.0,0.00012772,2]
[422558165,1779078915000,-200.0,0.00012772,2]
[422558164,1779078915000,-200.0,0.00012772,2]
[422558166,1779078916000,-200.0,0.00012772,2]
[422558167,1779078916000,-200.0,0.00012772,2]
[422558168,1779078916000,-200.0,0.00012772,2]
[422558169,1779078917000,-200.0,0.00012772,2]
[422558171,1779078918000,-200.0,0.00012772,2]
[422558170,1779078918000,-200.0,0.00012772,2]
[422558174,1779078919000,-200.0,0.00012772,2]
[422558173,1779078919000,-200.0,0.00012772,2]
[422558172,1779078919000,-200.0,0.00012772,2]
[422558176,1779078920000,-200.0,0.00012772,2]
[422558175,1779078920000,152.0,0.00029847,120]
[422558177,1779078921000,-200.0,0.00012772,2]
[422558178,1779078922000,-200.0,0.00012772,2]
[422558179,1779078923000,-200.0,0.00012772,2]
[422558181,1779078923000,-200.0,0.00012772,2]
[422558180,1779078923000,-200.0,0.00012772,2]
[422558182,1779078924000,-200.0,0.00012772,2]
[422558183,1779078924000,-200.0,0.00012772,2]
[422558184,1779078926000,-200.0,0.00012772,2]
[422558187,1779078927000,-200.0,0.00012772,2]
[422558186,1779078927000,-200.0,0.00012772,2]
[422558185,1779078927000,-200.0,0.00012772,2]
[422558190,1779078928000,-200.0,0.00012772,2]
[422558189,1779078928000,-200.0,0.00012772,2]
[422558188,1779078928000,-200.0,0.00012772,2]
[422558191,1779078929000,-200.0,0.00012772,2]
[422558192,1779078932000,-200.0,0.00012772,2]
[422558193,1779078933000,-200.0,0.00012772,2]
[422558194,1779078933000,-200.0,0.00012772,2]
[422558196,1779078934000,-200.0,0.00012772,2]
[422558195,1779078934000,-200.0,0.00012772,2]
[422558197,1779078934000,-200.0,0.00012772,2]
[422558200,1779078935000,-200.0,0.00012772,2]
[422558199,1779078935000,-200.0,0.00012772,2]
[422558198,1779078935000,-200.0,0.00012772,2]
[422558202,1779078936000,-200.0,0.00012772,2]
[422558201,1779078936000,-200.0,0.00012772,2]
[422558205,1779078937000,-200.0,0.00012772,2]
[422558204,1779078937000,-200.0,0.00012772,2]
[422558203,1779078937000,-200.0,0.00012772,2]
[422558207,1779078938000,-200.0,0.00012772,2]
[422558206,1779078938000,-200.0,0.00012772,2]
[422558208,1779078939000,-200.0,0.00012772,2]
[422558209,1779078939000,-200.0,0.00012772,2]
[422558210,1779078940000,-200.0,0.00012772,2]
[422558214,1779078941000,-200.0,0.00012772,2]
[422558213,1779078941000,-200.0,0.00012772,2]
[422558212,1779078941000,-4.56294844,0.00012772,2]
[422558211,1779078941000,-195.43705156,0.00012771,2]
[422558217,1779078942000,-200.0,0.00012772,2]
[422558216,1779078942000,-200.0,0.00012772,2]
[422558215,1779078942000,-200.0,0.00012772,2]
[422558220,1779078943000,-200.0,0.00012772,2]
[422558219,1779078943000,-200.0,0.00012772,2]
[422558218,1779078943000,-200.0,0.00012772,2]
[422558222,1779078944000,-200.0,0.00012772,2]
[422558221,1779078944000,-200.0,0.00012772,2]
[422558223,1779078945000,-200.0,0.00012772,2]
[422558224,1779078945000,-200.0,0.00012772,2]
[422558225,1779078945000,-200.0,0.00012772,2]
[422558226,1779078946000,-200.0,0.00012772,2]
[422558228,1779078948000,-200.0,0.00012772,2]
[422558227,1779078948000,-200.0,0.00012772,2]
[422558231,1779078949000,-200.0,0.00012772,2]
[422558230,1779078949000,-200.0,0.00012772,2]
[422558229,1779078949000,-200.0,0.00012772,2]
[422558233,1779078950000,-200.0,0.00012772,2]
[422558232,1779078950000,-200.0,0.00012772,2]
[422558236,1779078951000,-200.0,0.00012772,2]
[422558235,1779078951000,-200.0,0.00012772,2]
[422558234,1779078951000,-200.0,0.00012772,2]
[422558237,1779078953000,-200.0,0.00012772,2]
[422558238,1779078954000,-200.0,0.00012772,2]
[422558239,1779078954000,-200.0,0.00012772,2]
[422558240,1779078955000,-200.0,0.00012772,2]
[422558241,1779078956000,-200.0,0.00012772,2]
[422558243,1779078957000,-200.0,0.00012772,2]
[422558242,1779078957000,-200.0,0.00012772,2]
[422558245,1779078958000,-200.0,0.00012772,2]
[422558244,1779078958000,-200.0,0.00012772,2]
[422558248,1779078959000,-200.0,0.00012772,2]
[422558247,1779078959000,-200.0,0.00012772,2]
[422558246,1779078959000,-200.0,0.00012772,2]
[422558249,1779078960000,-200.0,0.00012772,2]
[422558251,1779078960000,-200.0,0.00012772,2]
[422558250,1779078960000,-200.0,0.00012772,2]
[422558252,1779078961000,-200.0,0.00012772,2]
[422558253,1779078961000,-200.0,0.00012772,2]
[422558256,1779078962000,-200.0,0.00012772,2]
[422558255,1779078962000,-50.0,0.00012772,2]
[422558254,1779078962000,-150.0,0.00012771,2]
[422558259,1779078963000,-200.0,0.00012772,2]
[422558258,1779078963000,-200.0,0.00012772,2]
[422558257,1779078963000,-200.0,0.00012772,2]
[422558261,1779078964000,-200.0,0.00012772,2]
[422558260,1779078964000,-200.0,0.00012772,2]
[422558262,1779078965000,-200.0,0.00012772,2]
[422558263,1779078965000,-200.0,0.00012772,2]
[422558264,1779078965000,-200.0,0.00012772,2]
[422558266,1779078966000,-200.0,0.00012772,2]